bitfinex-derivatives/quotes_ETHF0:USTF0_20250209
["timestamp","ask_amount","ask_price","bid_price","bid_amount"]
[1739135879678,1.66,2637.9,2637.7,0.00568656]
[1739135881075,2.41807,2637.9,2637.7,0.00568656]
[1739135881275,4.27694645,2637.8,2637.7,0.00568656]
[1739135881480,5.03503645,2637.8,2637.7,0.00568656]
[1739135883286,5.63673645,2637.8,2637.7,0.00568656]
[1739135883586,5.63673645,2637.8,2636.7,0.86789788]
[1739135883587,0.75826,2637.3,2636.7,3.2078]
[1739135883786,3.2078,2636.8,2636.1,0.3033894]
[1739135883988,3.2078,2636.2,2635.9,0.6004]
[1739135884178,1.663,2636.3,2636.1,3.41479969]
[1739135884482,1.663,2636.3,2635.9,0.6004]
[1739135884681,1.663,2636.3,2636.1,3.41479969]
[1739135884874,0.00568656,2636.5,2636.1,6.62259969]
[1739135885074,0.00568656,2636.5,2635.9,1.17238656]
[1739135885075,0.00568656,2636.5,2636.4,6.62259969]
[1739135885479,0.00568656,2636.5,2636.4,3.2078]
[1739135885674,0.00568656,2636.5,2636.1,3.41479969]
[1739135886380,0.00568656,2636.5,2635.9,0.60608656]
[1739135887288,3.2078,2636.3,2635.9,0.00568656]
[1739135888482,4.29325468,2636.2,2635.9,0.00568656]
[1739135888675,1.668,2636.1,2635.9,0.00568656]
[1739135889080,0.6076,2636.0,2635.9,0.00568656]
[1739135889279,1.1778,2636.0,2635.9,0.00568656]
[1739135889777,5.34267593,2636.0,2635.9,0.00568656]
[1739135892886,8.55047593,2636.0,2635.9,0.00568656]
[1739135893082,0.75866,2635.9,2634.9,6.62259969]
[1739135893282,3.2078,2635.5,2634.9,7.17389969]
[1739135893589,1.669,2635.4,2634.9,7.17389969]
[1739135894289,1.669,2635.4,2634.9,7.17958625]
[1739135895286,1.669,2635.4,2634.9,3.97178625]
[1739135896088,1.669,2635.4,2634.9,7.17958625]
[1739135897193,1.669,2635.4,2634.9,3.97178625]
[1739135897797,3.2078,2635.5,2635.2,3.41479969]
[1739135898100,1.666,2635.6,2635.3,0.6048]
[1739135898892,1.666,2635.6,2634.9,3.76478656]
[1739135898893,4.16273978,2635.5,2634.9,3.76478656]
[1739135899095,3.2078,2635.3,2634.9,0.55698656]
[1739135899592,3.2078,2635.0,2634.9,0.55698656]
[1739135899796,4.8748,2635.0,2634.9,0.55698656]
[1739135900500,4.8748,2635.0,2634.9,0.00568656]
[1739135900904,15.96397835,2635.0,2634.9,0.00568656]
[1739135901798,20.02303925,2635.0,2634.9,0.00568656]
[1739135902001,17.59714925,2635.0,2634.9,0.00568656]
[1739135902194,9.20508835,2635.0,2634.9,0.00568656]
[1739135903996,4.86997384,2635.0,2634.9,0.00568656]
[1739135904200,2.914,2635.2,2634.9,0.00568656]
[1739135905097,2.914,2635.2,2634.9,3.21348656]
[1739135905393,2.914,2635.2,2635.0,5.8177609]
[1739135905600,3.2078,2635.9,2635.4,0.75875]
[1739135905601,2.914,2635.8,2635.4,0.75875]
[1739135905799,2.914,2635.8,2635.5,3.2078]
[1739135906003,3.2078,2635.9,2635.3,4.0590609]
[1739135909101,3.96644,2635.9,2635.1,3.2078]
[1739135909303,4.89571824,2635.8,2635.1,3.2078]
[1739135909698,5.65439824,2635.8,2635.1,3.2078]
[1739135909907,5.46291824,2635.8,2635.1,3.2078]
[1739135910307,3.2078,2635.3,2635.0,1.1513]
[1739135910603,4.8788,2635.3,2635.0,1.1513]
[1739135910799,4.8788,2635.3,2635.0,0.5715]
[1739135911406,4.8788,2635.3,2634.9,0.00568656]
[1739135911602,4.16277394,2635.2,2634.9,0.00568656]
[1739135911809,4.8788,2635.3,2634.9,0.00568656]
[1739135912307,3.2078,2635.3,2634.9,0.00568656]
[1739135912504,1.671,2635.4,2634.9,0.00568656]
[1739135912807,3.2078,2635.1,2634.9,0.00568656]
[1739135913008,4.0590609,2635.0,2634.9,0.00568656]
[1739135913204,8.70713509,2635.0,2634.9,0.00568656]
[1739135915807,4.64807419,2635.0,2634.9,0.00568656]
[1739135916107,9.3448,2635.1,2634.9,0.00568656]
[1739135916307,9.9406,2635.1,2634.9,0.00568656]
[1739135916614,4.2591738,2635.0,2634.9,0.00568656]
[1739135916903,17.5945147,2635.0,2633.8,1.1542]
[1739135917105,3.2078,2634.5,2633.8,1.1542]
[1739135917311,4.8808,2634.4,2633.8,1.1542]
[1739135917504,9.07160584,2634.4,2633.8,1.1542]
[1739135918112,4.88648656,2634.4,2633.8,1.15799102]
[1739135919707,7.80048656,2634.4,2633.8,1.15799102]
[1739135920106,0.5531,2634.3,2633.8,1.15799102]
[1739135920518,7.80048656,2634.4,2633.8,4.36579102]
[1739135920709,6.12748656,2634.4,2633.8,8.42485192]
[1739135921021,4.59368656,2634.4,2633.8,8.42485192]
[1739135923409,2.91968656,2634.4,2633.8,8.42485192]
[1739135923619,2.91968656,2634.4,2634.1,3.2078]
[1739135925418,0.00568656,2634.4,2634.1,3.2078]
[1739135925917,0.00568656,2634.4,2633.8,8.42485192]
[1739135926117,0.00568656,2634.4,2633.8,4.36579102]
[1739135927621,0.00568656,2634.4,2633.8,8.42485192]
[1739135928026,0.00568656,2634.4,2633.8,4.36579102]
[1739135928417,3.21348656,2634.4,2633.8,4.36579102]
[1739135930017,4.7793745,2634.3,2633.8,3.21159102]
[1739135930216,5.7322545,2634.3,2633.8,3.21159102]
[1739135931025,5.7322545,2634.3,2633.9,0.5626]
[1739135931324,5.7322545,2634.3,2633.8,3.21159102]
[1739135931726,6.4913545,2634.3,2633.8,3.21159102]
[1739135932129,0.75913,2634.2,2633.8,3.21159102]
[1739135932321,1.687,2634.1,2633.8,3.21159102]
[1739135932514,6.03723714,2634.1,2633.8,3.21159102]
[1739135935330,0.75919,2634.0,2633.8,0.00379102]
[1739135937522,9.24503714,2634.1,2633.8,0.00379102]
[1739135940337,10.00421714,2634.1,2633.8,0.00379102]
[1739135940532,9.24503714,2634.1,2633.8,0.00379102]
[1739135943644,3.8527052,2633.9,2633.8,0.00379102]
[1739135944046,8.0325179,2633.9,2633.8,0.00379102]
[1739135946238,7.2733079,2633.9,2633.8,0.00379102]
[1739135946440,1.678,2633.9,2633.8,0.00379102]
[1739135953644,1.678,2633.9,2633.7,1.1618]
[1739135953645,3.2078,2633.6,2631.6,2.87992933]
[1739135953850,3.96763,2631.8,2631.6,1.66123822]
[1739135954042,3.96763,2631.8,2630.9,12.09262039]
[1739135954043,3.2078,2631.5,2630.8,5.73790101]
[1739135954249,3.2078,2630.9,2630.8,1.61618967]
[1739135954449,5.0268,2630.9,2630.6,14.16155555]
[1739135954743,5.0268,2630.9,2630.6,0.54157191]
[1739135954744,14.40609064,2630.9,2630.6,0.54157191]
[1739135954952,6.1869904,2630.7,2630.6,0.54157191]
[1739135955144,6.9471204,2630.7,2630.6,0.54157191]
[1739135955349,6.9471204,2630.7,2629.9,17.7696407]
[1739135955350,16.35141029,2630.7,2629.9,17.7696407]
[1739135955550,6.3012952,2630.0,2629.9,17.7696407]
[1739135955759,5.89424307,2630.0,2629.9,17.7696407]
[1739135955949,0.00569746,2631.0,2629.9,17.7696407]
[1739135955950,9.10404307,2630.9,2629.9,26.9774407]
[1739135956251,9.10404307,2630.9,2630.1,3.2078]
[1739135956252,13.24927338,2630.9,2630.1,3.2078]
[1739135956451,5.96723031,2630.9,2630.8,5.45963822]
[1739135956650,9.17503031,2630.9,2630.5,5.45963822]
[1739135956847,3.2078,2630.6,2630.5,5.45963822]
[1739135957050,3.2078,2630.6,2630.2,3.2078]
[1739135957245,3.2078,2630.6,2630.5,5.45963822]
[1739135957648,1.822,2630.9,2630.5,5.45963822]
[1739135957848,1.822,2630.9,2630.8,5.45963822]
[1739135958250,6.18853797,2630.9,2630.8,5.45963822]
[1739135958646,4.36653797,2630.9,2630.8,5.45963822]
[1739135958852,0.00569746,2631.0,2630.8,5.45963822]
[1739135959052,0.00569746,2631.0,2630.9,5.45963822]
[1739135959756,0.7601,2630.9,2629.3,7.28204307]
[1739135959960,3.2078,2630.1,2629.4,1.7704]
[1739135960357,3.2078,2630.1,2630.0,5.45963822]
[1739135961157,7.31012607,2630.1,2630.0,5.45963822]
[1739135964664,7.31012607,2630.1,2629.4,1.7704]
[1739135964962,3.2078,2629.7,2629.4,1.1958]
[1739135965163,4.07424307,2629.5,2629.4,1.1958]
[1739135965469,8.17831451,2629.5,2629.4,5.45963822]
[1739135968057,0.76054,2629.4,2628.4,3.2078]
[1739135968354,7.28204307,2629.0,2628.4,3.2078]
[1739135968559,1.816,2628.9,2628.8,5.45963822]
[1739135968762,5.92152838,2628.9,2628.8,5.45963822]
[1739135969659,5.92152838,2628.9,2628.4,3.2078]
[1739135969859,5.92152838,2628.9,2628.5,5.45963822]
[1739135970066,0.76081,2628.4,2627.3,3.2078]
[1739135970268,4.07424307,2628.0,2627.5,0.5803]
[1739135970461,1.819,2627.9,2627.6,3.2078]
[1739135970965,1.819,2627.9,2627.8,5.45963822]
[1739135971360,6.0364319,2627.9,2627.8,5.45963822]
[1739135973560,6.0364319,2627.9,2627.5,0.5803]
[1739135973767,9.2442319,2627.9,2627.5,6.03993822]
[1739135973968,4.07424307,2627.7,2627.5,6.03993822]
[1739135974360,4.11665394,2627.6,2627.5,6.03993822]
[1739135974666,4.11665394,2627.6,2627.5,5.45963822]
[1739135974667,7.32445394,2627.6,2627.5,5.45963822]
[1739135975169,7.32445394,2627.6,2626.9,3.2078]
[1739135975371,4.07424307,2627.3,2627.2,5.45963822]
[1739135975569,5.88924307,2627.3,2627.2,5.45963822]
[1739135975869,10.04559108,2627.3,2627.2,5.45963822]
[1739135976666,8.23059108,2627.3,2627.2,5.45963822]
[1739135976867,1.812,2627.3,2626.9,3.2078]
[1739135977065,9.97263929,2627.3,2627.1,5.45963822]
[1739135977272,9.97263929,2627.3,2627.0,5.45963822]
[1739135977775,9.97263929,2627.3,2627.1,5.45963822]
[1739135978466,0.00570841,2627.9,2627.2,8.66743822]
[1739135978667,0.00570841,2627.9,2627.8,5.45963822]
[1739135978867,1.81670841,2627.9,2627.8,5.45963822]
[1739135979066,5.79827774,2627.9,2627.8,5.45963822]
[1739135979467,3.98727774,2627.9,2627.8,5.45963822]
[1739135979669,0.00570841,2627.9,2627.8,8.66743822]
[1739135979867,7.28204307,2628.6,2627.8,14.66743822]
[1739135980066,1.81,2628.7,2628.5,5.45963822]
[1739135980272,1.81,2628.7,2628.6,5.45963822]
[1739135980673,6.10664893,2628.7,2628.6,5.45963822]
[1739135983074,1.81,2628.7,2628.6,5.45963822]
[1739135983271,1.805,2628.8,2628.6,5.45963822]
[1739135983472,0.00570841,2628.9,2628.8,5.45963822]
[1739135983873,1.804,2629.2,2628.8,5.45963822]
[1739135984178,1.804,2629.2,2628.7,0.5543]
[1739135984375,3.2078,2629.3,2629.1,5.45963822]
[1739135984575,5.0108,2629.3,2629.2,5.45963822]
[1739135988878,1.803,2629.3,2629.2,5.45963822]
[1739135991980,0.00570841,2629.5,2629.2,8.66743822]
[1739135992186,0.00570841,2629.5,2629.4,5.45963822]
[1739135997081,4.9898,2629.9,2629.4,6.03513822]
[1739135997283,4.9898,2629.9,2629.8,5.45963822]
[1739135997585,3.2078,2629.9,2629.8,5.45963822]
[1739135998783,1.78,2630.0,2629.8,5.45963822]
[1739135998983,1.78,2630.0,2629.6,3.2078]
[1739135999186,1.78,2630.0,2629.9,5.45963822]
[1739136001192,0.76041,2629.8,2629.3,0.5859]
[1739136001391,3.2078,2629.6,2629.5,5.45963822]
[1739136001784,7.33186168,2629.6,2629.5,5.45963822]
[1739136002993,0.76051,2629.4,2628.7,3.7637]
[1739136003192,4.9808,2629.3,2629.1,5.45963822]
[1739136003392,9.00265533,2629.3,2629.1,5.45963822]
[1739136003593,9.76320533,2629.3,2629.1,5.45963822]
[1739136003798,9.00265533,2629.3,2629.1,5.45963822]
[1739136005199,7.22965533,2629.3,2629.2,5.45963822]
[1739136005398,4.07424307,2629.7,2629.2,5.45963822]
[1739136005399,1.77,2629.5,2629.2,5.45963822]
[1739136005598,1.77,2629.5,2628.8,3.2078]
[1739136005799,4.32944269,2629.4,2629.3,5.45963822]
[1739136008602,6.09444269,2629.4,2629.3,5.45963822]
[1739136010700,10.16868576,2629.4,2629.3,5.45963822]
[1739136011696,10.16868576,2629.4,2628.7,0.5559]
[1739136011895,3.2078,2629.3,2629.2,5.45963822]
[1739136012501,7.57591233,2629.3,2629.2,5.45963822]
[1739136013498,7.57591233,2629.3,2628.7,0.5559]
[1739136013706,7.57591233,2629.3,2629.1,5.45963822]
[1739136015210,7.57591233,2629.3,2629.2,5.45963822]
[1739136018613,7.57591233,2629.3,2628.7,0.5559]
[1739136018813,8.33645233,2629.3,2629.1,5.45963822]
[1739136019203,8.33645233,2629.3,2628.5,0.5689]
[1739136019204,7.57591233,2629.3,2628.5,0.5689]
[1739136019413,4.07424307,2628.9,2628.8,5.45963822]
[1739136019605,4.83489307,2628.9,2628.8,5.45963822]
[1739136019907,0.7607,2628.8,2628.4,3.21350841]
[1739136020213,4.07424307,2628.6,2628.5,5.45963822]
[1739136020614,8.48771883,2628.6,2628.5,5.45963822]
[1739136021114,11.69551883,2628.6,2628.5,5.45963822]
[1739136021312,12.45625883,2628.6,2628.4,0.00570841]
[1739136021712,7.62127576,2628.6,2628.5,5.45963822]
[1739136021911,0.00570841,2628.8,2628.5,5.45963822]
[1739136022216,0.00570841,2628.8,2628.7,5.45963822]
[1739136023116,1.764,2629.4,2628.7,5.45963822]
[1739136023412,8.3322043,2629.5,2629.4,5.45963822]
[1739136023617,10.0962043,2629.5,2629.4,5.45963822]
[1739136023816,5.83824307,2629.5,2629.4,5.45963822]
[1739136024114,10.0962043,2629.5,2629.4,5.45963822]
[1739136025815,4.9688,2629.6,2629.4,5.45963822]
[1739136026016,4.9688,2629.6,2629.5,5.45963822]
[1739136027215,0.00570841,2629.7,2629.5,5.45963822]
[1739136027518,3.2078,2630.5,2629.6,3.2078]
[1739136027718,3.2078,2630.5,2630.0,3.2078]
[1739136028021,3.2078,2630.5,2630.4,5.45963822]
[1739136028225,1.763,2630.7,2630.4,5.45963822]
[1739136028415,1.763,2630.7,2630.6,5.45963822]
[1739136029411,0.00570841,2630.8,2630.6,9.53388129]
[1739136029615,4.9748,2631.3,2630.7,5.45963822]
[1739136029827,4.9748,2631.3,2631.2,5.45963822]
[1739136030213,9.36845115,2631.3,2631.2,5.45963822]
[1739136030527,13.44269422,2631.3,2631.2,5.45963822]
[1739136030918,0.76,2631.2,2630.4,0.5841]
[1739136031127,7.28204307,2630.9,2630.7,5.45963822]
[1739136031623,3.2078,2631.3,2630.8,5.45963822]
[1739136031826,3.2078,2631.3,2631.2,5.45963822]
[1739136034425,7.35790478,2631.3,2631.2,5.45963822]
[1739136035221,7.35790478,2631.3,2630.5,1.143]
[1739136035222,0.76001,2631.2,2630.5,1.143]
[1739136035421,3.2078,2630.9,2630.7,5.45963822]
[1739136035721,5.7558085,2630.8,2630.7,5.45963822]
[1739136036518,5.7558085,2630.8,2630.3,0.00570841]
[1739136036715,3.2078,2630.5,2630.4,5.45963822]
[1739136037216,7.177666,2630.5,2630.4,5.45963822]
[1739136047535,4.9608,2630.8,2630.4,6.06403822]
[1739136047736,3.2078,2630.8,2630.5,1.1332]
[1739136047929,7.31843785,2631.1,2630.7,5.45963822]
[1739136048133,3.2078,2631.1,2630.5,1.1332]
[1739136048327,3.2078,2631.1,2631.0,5.45963822]
[1739136052836,1.753,2631.2,2631.0,5.45963822]
[1739136053027,1.753,2631.2,2631.1,5.45963822]
[1739136055129,1.753,2631.2,2630.5,1.1332]
[1739136055435,4.07424307,2631.3,2631.1,5.45963822]
[1739136055631,1.745,2631.2,2630.5,1.1332]
[1739136055836,3.2078,2631.4,2631.3,5.45963822]
[1739136056032,1.74773278,2631.5,2631.3,5.45963822]
[1739136056228,1.74773278,2631.5,2631.4,6.06693822]
[1739136057735,0.00373278,2631.5,2631.4,6.06693822]
[1739136058638,3.09997965,2632.3,2631.4,12.06693822]
[1739136058838,1.746,2632.2,2631.5,0.586]
[1739136059229,3.09997965,2632.3,2632.1,5.45963822]
[1739136059440,4.84697965,2632.3,2632.2,5.45963822]
[1739136060233,3.09997965,2632.3,2632.2,5.45963822]
[1739136060434,4.84597965,2632.3,2632.2,5.45963822]
[1739136061735,1.746,2632.3,2632.2,5.45963822]
[1739136063744,0.7597,2632.2,2632.0,0.00570841]
[1739136063940,7.2743956,2632.1,2632.0,0.00570841]
[1739136064135,0.75979,2631.9,2631.0,0.606]
[1739136064334,11.35501473,2632.1,2631.0,5.2297956]
[1739136064335,3.2078,2631.7,2631.0,5.2297956]
[1739136064540,4.9518,2632.3,2632.0,5.45963822]
[1739136064840,4.9518,2632.3,2631.5,3.2078]
[1739136065040,4.9518,2632.3,2632.2,5.45963822]
[1739136065442,4.9518,2632.3,2631.6,1.1897]
[1739136065443,0.7597,2632.2,2632.0,0.00570841]
[1739136065638,4.8263256,2632.1,2632.0,0.00570841]
[1739136065843,9.0970991,2632.1,2632.0,0.00570841]
[1739136066139,8.3373691,2632.1,2632.0,0.00570841]
[1739136066335,15.0970991,2632.1,2632.0,0.00570841]
[1739136066738,8.3373691,2632.1,2631.2,0.5651]
[1739136066937,3.2078,2631.8,2631.2,0.5651]
[1739136067137,1.747,2631.7,2631.2,0.5651]
[1739136067647,1.747,2631.7,2631.6,5.45963822]
[1739136073446,3.2078,2632.4,2631.6,5.45963822]
[1739136073645,1.737,2632.2,2631.7,0.5889]
[1739136073955,1.737,2632.2,2631.8,3.2078]
[1739136074248,1.737,2632.2,2632.1,5.45963822]
[1739136084958,9.21526954,2632.2,2631.4,0.57660841]
[1739136085152,3.96757,2632.0,2631.8,5.45963822]
[1739136085446,3.2078,2632.0,2631.8,5.45963822]
[1739136085650,7.45346224,2631.9,2631.4,0.00570841]
[1739136085853,0.5557,2631.8,2631.7,5.45963822]
[1739136086354,4.91167025,2631.8,2631.7,5.45963822]
[1739136091950,3.2078,2632.0,2631.7,5.45963822]
[1739136092153,3.2078,2632.0,2631.4,3.1032004]
[1739136092154,3.2078,2632.0,2631.9,5.45963822]
[1739136093252,4.9268,2632.0,2631.9,5.45963822]
[1739136094260,3.09749199,2632.2,2631.9,5.45963822]
[1739136094558,1.718,2632.2,2632.1,5.45963822]
[1739136095357,3.2078,2632.4,2632.1,5.45963822]
[1739136095559,3.2078,2632.4,2632.3,5.45963822]
[1739136095751,3.2078,2632.4,2632.2,5.45963822]
[1739136095955,7.53948865,2632.4,2632.2,5.45963822]
[1739136096460,13.53948865,2632.4,2631.4,0.00570841]
[1739136096666,3.2078,2631.7,2631.4,0.00570841]
[1739136097063,3.2078,2631.7,2631.6,5.45963822]
[1739136097666,0.75985,2631.7,2631.6,5.45963822]
[1739136097864,3.09749199,2631.8,2631.6,5.45963822]
[1739136098065,3.09749199,2631.8,2631.7,5.45963822]
[1739136098368,7.42723928,2631.8,2631.7,5.45963822]
[1739136098665,7.42723928,2631.8,2631.4,0.00570841]
[1739136098964,3.09749199,2631.5,2631.4,5.46534663]
[1739136099270,4.82249199,2631.5,2631.4,0.00570841]
[1739136099470,9.15223928,2631.5,2631.4,0.00570841]
[1739136100266,9.91213928,2631.5,2631.4,0.00570841]
[1739136100669,9.15223928,2631.5,2631.4,5.46534663]
[1739136102572,9.15223928,2631.5,2631.4,0.00570841]
[1739136102773,9.91213928,2631.5,2631.4,0.00570841]
[1739136103666,0.76,2631.2,2630.6,4.9535]
[1739136103865,3.2078,2631.0,2630.9,5.46332044]
[1739136104274,7.32194593,2631.0,2630.9,0.00368222]
[1739136104675,7.32194593,2631.0,2630.9,5.46332044]
[1739136104865,3.2078,2631.3,2630.9,5.46332044]
[1739136105064,3.2078,2631.3,2630.9,0.00368222]
[1739136105274,3.2078,2631.3,2631.2,5.45963822]
[1739136106871,1.723,2631.6,2631.2,5.45963822]
[1739136107068,3.09749199,2631.7,2631.3,1.7546]
[1739136107372,4.82049199,2632.3,2631.6,5.45963822]
[1739136107571,1.723,2632.3,2631.5,3.2078]
[1739136107875,1.723,2632.3,2632.2,5.45963822]
[1739136108274,4.82049199,2632.3,2632.2,5.45963822]
[1739136109570,4.82049199,2632.3,2631.5,3.2078]
[1739136109773,3.09749199,2631.9,2631.3,4.9624]
[1739136110074,3.09749199,2631.9,2631.7,5.45963822]
[1739136110269,4.24309989,2631.8,2631.7,5.45963822]
[1739136111778,1.722,2631.8,2631.7,5.45963822]
[1739136115272,5.72193672,2631.8,2631.7,5.45963822]
[1739136115483,6.48175672,2631.8,2631.7,5.45963822]
[1739136116377,0.75987,2631.6,2631.0,0.5534]
[1739136116676,3.09749199,2631.3,2631.0,0.5534]
[1739136116883,1.719,2631.2,2631.0,0.5534]
[1739136117284,1.719,2631.2,2631.1,5.45963822]
[1739136118381,1.717,2631.6,2631.1,5.45963822]
[1739136118681,1.717,2631.6,2631.0,0.5534]
[1739136118682,1.717,2631.6,2631.5,5.45963822]
[1739136120772,3.66829199,2631.9,2631.5,5.45963822]
[1739136120977,3.66829199,2631.9,2631.8,5.45963822]
[1739136120978,3.09749199,2631.9,2631.8,5.45963822]
[1739136121181,4.81349199,2631.9,2631.8,5.45963822]
[1739136121979,3.2078,2632.0,2631.8,5.45963822]
[1739136122183,3.2078,2632.0,2631.9,5.45963822]
[1739136124383,1.713,2632.1,2631.9,5.45963822]
[1739136124680,1.713,2632.1,2632.0,5.45963822]
[1739136126483,5.90305941,2632.1,2632.0,5.45963822]
[1739136126684,5.90305941,2632.1,2631.6,0.5953]
[1739136126883,3.85728199,2631.9,2631.7,5.45963822]
[1739136127184,0.75982,2631.8,2631.7,5.45963822]
[1739136127386,4.94987941,2631.8,2631.7,5.45963822]
[1739136129587,4.19005941,2631.8,2631.7,5.45963822]
[1739136131084,1.713,2631.8,2631.7,5.45963822]
[1739136131474,1.715,2632.0,2631.7,5.45963822]
[1739136131678,1.715,2632.0,2631.9,5.45963822]
[1739136132179,1.714,2632.0,2631.9,5.45963822]
[1739136133785,1.714,2632.0,2631.9,6.60703822]
[1739136139491,1.714,2632.0,2631.9,5.45963822]
[1739136139791,0.75979,2631.9,2631.8,0.00287393]
[1739136139991,4.21339199,2631.9,2631.2,0.6027]
[1739136140291,4.21339199,2631.9,2631.5,5.45963822]
[1739136140292,3.2078,2631.7,2631.5,5.45963822]
[1739136140785,3.2078,2631.7,2631.2,0.6027]
[1739136140786,3.65759199,2631.9,2631.6,5.45963822]
[1739136140992,3.65759199,2631.9,2631.8,5.45963822]
[1739136141393,7.93383518,2631.9,2631.8,5.45963822]
[1739136141990,7.93383518,2631.9,2631.2,0.6027]
[1739136142197,3.2078,2631.8,2631.6,5.45963822]
[1739136142587,4.2121575,2631.7,2631.6,5.45963822]
[1739136144193,4.2121575,2631.7,2631.2,0.6027]
[1739136144497,3.2078,2631.3,2631.2,0.6027]
[1739136144697,4.9178,2631.3,2631.2,6.06233822]
[1739136145101,4.9178,2631.3,2631.2,5.45963822]
[1739136145292,9.25616244,2631.3,2631.2,5.45963822]
[1739136147791,4.9178,2631.3,2631.2,5.45963822]
[1739136147997,3.2078,2631.3,2631.2,5.45963822]
[1739136152499,10.32973888,2631.3,2630.7,0.00570841]
[1739136152805,0.5711,2631.2,2631.1,5.45963822]
[1739136153204,4.91224352,2631.2,2631.1,5.45963822]
[1739136154413,4.91224352,2631.2,2630.7,0.00570841]
[1739136154713,4.91224352,2631.2,2631.0,5.45963822]
[1739136155203,10.91224352,2631.2,2630.7,0.00570841]
[1739136155409,6.30529199,2630.8,2630.7,0.00570841]
[1739136155705,8.00829199,2630.8,2630.7,0.00570841]
[1739136155899,13.74988524,2630.8,2630.7,0.00570841]
[1739136157110,0.76024,2630.4,2629.9,0.5738]
[1739136157408,3.2078,2630.4,2629.9,0.5738]
[1739136157603,5.85413433,2630.3,2630.0,1.1702]
[1739136157809,1.71,2630.3,2630.0,1.1702]
[1739136158004,1.71,2630.3,2630.2,5.45963822]
[1739136158210,1.71,2630.3,2630.0,1.1702]
[1739136158211,4.25348743,2630.2,2630.1,5.45963822]
[1739136158411,5.96348743,2630.3,2630.1,5.45963822]
[1739136158612,1.71,2630.3,2630.1,5.45963822]
[1739136158906,3.9659518,2630.2,2630.1,5.45963822]
[1739136159214,7.1737518,2630.2,2630.1,5.45963822]
[1739136159416,3.2078,2630.2,2630.1,5.45963822]
[1739136163814,7.27566154,2630.2,2630.1,5.45963822]
[1739136165210,3.2078,2630.6,2630.1,5.45963822]
[1739136165416,3.70109199,2630.7,2630.5,5.45963822]
[1739136165714,5.92916253,2630.6,2630.5,5.45963822]
[1739136168822,5.92916253,2630.6,2629.9,6.8848004]
[1739136168823,0.76022,2630.5,2629.9,0.57950841]
[1739136169023,3.09749199,2630.3,2630.2,5.45963822]
[1739136169321,10.47146852,2630.3,2630.1,5.45963822]
[1739136169916,10.47146852,2630.3,2629.9,0.57950841]
[1739136169917,0.76028,2630.2,2629.9,0.57950841]
[1739136170118,0.562,2630.1,2629.9,5.46534663]
[1739136170317,1.707,2630.0,2629.9,5.46534663]
[1739136170514,8.01229199,2630.0,2629.9,5.46534663]
[1739136170720,8.01229199,2630.0,2629.9,0.00570841]
[1739136170721,12.05332668,2630.0,2629.9,0.00570841]
[1739136171413,12.81366668,2630.0,2629.9,0.00570841]
[1739136171618,12.05332668,2630.0,2629.9,0.00570841]
[1739136171816,12.81366668,2630.0,2629.9,0.00570841]
[1739136172519,12.05332668,2630.0,2629.9,0.00570841]
[1739136173424,12.05332668,2630.0,2629.0,0.5573]
[1739136173620,12.05332668,2630.0,2629.7,5.45963822]
[1739136173820,0.76037,2629.9,2629.7,5.45963822]
[1739136174220,4.3964437,2629.8,2629.7,5.45963822]
[1739136175923,8.77265199,2630.0,2629.7,5.45963822]
[1739136176117,4.39145173,2629.9,2629.7,5.45963822]
[1739136176320,5.15182173,2629.9,2629.7,5.45963822]
[1739136176524,0.76037,2629.9,2629.7,5.45963822]
[1739136176820,4.11980318,2629.8,2629.7,5.45963822]
[1739136177527,7.32760318,2629.8,2629.7,5.45963822]
[1739136178030,4.11980318,2629.8,2629.7,5.45963822]
[1739136178228,7.32760318,2629.8,2629.7,5.45963822]
[1739136179828,8.08799318,2629.8,2629.7,5.45963822]
[1739136180431,7.32760318,2629.8,2629.7,5.45963822]
[1739136181721,0.76045,2629.6,2629.5,0.00570841]
[1739136181926,3.85794199,2629.6,2629.5,0.00570841]
[1739136182127,8.16594484,2629.6,2629.5,0.00570841]
[1739136184024,4.30800285,2629.6,2629.5,5.46534663]
[1739136184231,3.2078,2629.8,2629.5,5.46534663]
[1739136184534,3.2078,2629.8,2629.7,5.45963822]
[1739136184925,7.19423894,2629.8,2629.7,5.45963822]
[1739136186340,4.9188,2629.8,2629.7,5.45963822]
[1739136188231,1.711,2629.8,2629.7,5.45963822]
[1739136189733,2.2692,2629.8,2629.7,5.45963822]
[1739136191740,6.38775737,2629.8,2629.7,5.45963822]
[1739136193437,0.76045,2629.7,2629.5,0.00570841]
[1739136193641,6.30529199,2629.6,2629.5,0.00570841]
[1739136193830,10.41629171,2629.6,2629.5,0.00570841]
[1739136194035,10.96999171,2629.6,2629.5,0.00570841]
[1739136197541,10.41629171,2629.6,2629.5,0.00570841]
[1739136198344,6.30529199,2629.9,2629.5,0.00570841]
[1739136198541,1.703,2629.8,2629.5,0.00570841]
[1739136198743,4.26947676,2629.7,2629.5,0.00570841]
[1739136198941,5.97247676,2629.8,2629.5,0.00570841]
[1739136199142,1.703,2629.8,2629.5,0.00570841]
[1739136199349,4.26947676,2629.7,2629.5,0.00570841]
[1739136200737,3.09749199,2629.6,2629.5,0.00570841]
[1739136200946,6.30529199,2629.6,2629.5,0.00570841]
[1739136201149,11.96777316,2629.6,2629.5,0.00570841]
[1739136202547,8.87028117,2629.6,2629.5,0.00570841]
[1739136203245,8.10983117,2629.6,2629.1,1.1726]
[1739136203441,6.30529199,2629.2,2629.1,0.5921]
[1739136203748,8.00829199,2629.2,2629.1,0.5921]
[1739136203942,12.40420578,2629.2,2629.1,6.05173822]
[1739136204343,12.40420578,2629.2,2629.1,5.45963822]
[1739136204746,12.40420578,2629.2,2628.9,0.00380564]
[1739136204946,0.76063,2629.0,2628.9,5.46344386]
[1739136205143,0.76063,2629.0,2628.9,0.00380564]
[1739136205439,4.34115069,2629.0,2628.9,0.00380564]
[1739136205842,4.20248211,2629.1,2628.9,0.00380564]
[1739136206045,1.31663,2629.0,2628.9,0.00380564]
[1739136206342,5.51911211,2629.0,2628.9,0.00380564]
[1739136206548,5.51911211,2629.0,2628.5,1.2132]
[1739136206549,4.75848211,2629.0,2628.5,1.2132]
[1739136206846,3.2078,2628.6,2628.5,1.2132]
[1739136207042,1.703,2628.6,2628.5,1.2132]
[1739136207249,5.87116313,2628.6,2628.5,6.67283822]
[1739136207447,1.703,2628.6,2628.5,6.67283822]
[1739136210046,0.7907,2628.6,2628.5,6.67283822]
[1739136210350,0.78782607,2628.6,2628.5,6.67283822]
[1739136210551,6.30529199,2629.3,2628.5,15.88063822]